Workbook

Sheet FCON
A1: PROPOSTA FINANCEIRA DO PROJETO | H1: CODIGO:
H2: FCON
A3: NOME DA CONSULTORA:
A5: PROJETO: | D5: PRODUTO: | H5: EDITAL:
A6: SERVIÇOS ESPECIALIZADOS PARA ELABORAÇÃO DOS RELATÓRIOS DE REVISÃO PERIODICA DE SEGURANÇA (RPS) DAS BARRAGENS DA CODEVASF
A7: Cod. | B7: Categoria / Insumo | C7: Uni | D7: Qde | E7: CUD | F7: PU | G7: FatorK | H7: CT | I7: PT
A8: MO | B8: Mão de Obra | H8: =SUM(H9:H19) -> 1062855.2 | I8: =SUM(I9:I19) -> 2704010.15
A9: P0 | B9: Coordenador Geral | C9: mês | D9: =SUMIF(FCON1_Qde!$B$10:$B$28,"="&FCON!$B9,FCON1_Qde!$D$10:$D$28) -> 10 | E9: 17776 | F9: =ROUND(E9*G9,2) -> 45223.92 | G9: =FCON2_FatorK1!$E$37 -> 2.5441 | H9: =ROUND(D9*E9,2) -> 177760 | I9: =ROUND(F9*D9,2) -> 452239.2
A10: P1 | B10: Engenheiro Hidráulico | C10: mês | D10: =SUMIF(FCON1_Qde!$B$10:$B$28,"="&FCON!$B10,FCON1_Qde!$D$10:$D$28) -> 10 | E10: 13735.04 | F10: =ROUND(E10*G10,2) -> 34943.32 | G10: =FCON2_FatorK1!$E$37 -> 2.5441 | H10: =ROUND(D10*E10,2) -> 137350.4 | I10: =ROUND(F10*D10,2) -> 349433.2
A11: P1 | B11: Engenheiro Hidrólogo | C11: mês | D11: =SUMIF(FCON1_Qde!$B$10:$B$28,"="&FCON!$B11,FCON1_Qde!$D$10:$D$28) -> 10 | E11: 13735.04 | F11: 34943.32 | G11: =FCON2_FatorK1!$E$37 -> 2.5441 | H11: 137350.4 | I11: 349433.2
A12: P1 | B12: Engenheiro Geotécnico | C12: mês | D12: =SUMIF(FCON1_Qde!$B$10:$B$28,"="&FCON!$B12,FCON1_Qde!$D$10:$D$28) -> 10 | E12: 13735.04 | F12: 34943.32 | G12: =FCON2_FatorK1!$E$37 -> 2.5441 | H12: 137350.4 | I12: 349433.2
A13: P1 | B13: Engenheiro Estrutural | C13: mês | D13: =SUMIF(FCON1_Qde!$B$10:$B$28,"="&FCON!$B13,FCON1_Qde!$D$10:$D$28) -> 10 | E13: 13735.04 | F13: 34943.32 | G13: =FCON2_FatorK1!$E$37 -> 2.5441 | H13: 137350.4 | I13: 349433.2
A14: P1 | B14: Engenheiro Mecânico/Eletricista | C14: mês | D14: =SUMIF(FCON1_Qde!$B$10:$B$28,"="&FCON!$B14,FCON1_Qde!$D$10:$D$28) -> 5 | E14: 13735.04 | F14: 34943.32 | G14: =FCON2_FatorK1!$E$37 -> 2.5441 | H14: 68675.2 | I14: 174716.6
A15: P1 | B15: Geólogo | C15: mês | D15: =SUMIF(FCON1_Qde!$B$10:$B$28,"="&FCON!$B15,FCON1_Qde!$D$10:$D$28) -> 5 | E15: 13735.04 | F15: 34943.32 | G15: =FCON2_FatorK1!$E$37 -> 2.5441 | H15: 68675.2 | I15: 174716.6
A16: T1 | B16: Técnico Cadista/Estruturas | C16: mês | D16: =SUMIF(FCON1_Qde!$B$10:$B$28,"="&FCON!$B16,FCON1_Qde!$D$10:$D$28) -> 10 | E16: 4384.16 | F16: 11153.74 | G16: =FCON2_FatorK1!$E$37 -> 2.5441 | H16: 43841.6 | I16: 111537.4
A17: T1 | B17: Técnico Geopro/Hidrologia | C17: mês | D17: =SUMIF(FCON1_Qde!$B$10:$B$28,"="&FCON!$B17,FCON1_Qde!$D$10:$D$28) -> 20 | E17: 4384.16 | F17: 11153.74 | G17: =FCON2_FatorK1!$E$37 -> 2.5441 | H17: 87683.2 | I17: 223074.8
A18: A1 | B18: Secretário | C18: mês | D18: =SUMIF(FCON1_Qde!$B$10:$B$28,"="&FCON!$B18,FCON1_Qde!$D$10:$D$28) -> 10 | E18: 4454.56 | F18: 11332.85 | G18: =FCON2_FatorK1!$E$37 -> 2.5441 | H18: 44545.6 | I18: 113328.5
A19: A1 | B19: Redator/Revisor/Editor | C19: mês | D19: =SUMIF(FCON1_Qde!$B$10:$B$28,"="&FCON!$B19,FCON1_Qde!$D$10:$D$28) -> 5 | E19: 4454.56 | F19: 11332.85 | G19: =FCON2_FatorK1!$E$37 -> 2.5441 | H19: 22272.8 | I19: 56664.25
A20: DP | B20: Diárias e Passagens | H20: =SUM(H21:H23) -> 92578.8 | I20: =SUM(I21:I23) -> 118751.64
A21: V0 | B21: Diárias | C21: dia | D21: =SUMIF(FCON1_Qde!$A$10:$A$28,"="&FCON!$A21,FCON1_Qde!$D$10:$D$28) -> 168 | E21: 239 | F21: 306.57 | G21: =FCON3_FatorK234!$E$19 -> 1.2827 | H21: 40152 | I21: 51503.76
A22: V1 | B22: Aluguel Hatch 1.4 flex c/ Motorista | C22: dia | D22: =SUMIF(FCON1_Qde!$A$10:$A$28,"="&FCON!$A22,FCON1_Qde!$D$10:$D$28) -> 48 | E22: 228.6 | F22: 293.23 | G22: =FCON3_FatorK234!$E$19 -> 1.2827 | H22: 10972.8 | I22: 14075.04
A23: V2 | B23: Passagens Aéreas (ida e volta) | C23: un | D23: =SUMIF(FCON1_Qde!$A$10:$A$28,"="&FCON!$A23,FCON1_Qde!$D$10:$D$28) -> 42 | E23: 987 | F23: 1266.02 | G23: =FCON3_FatorK234!$E$19 -> 1.2827 | H23: 41454 | I23: 53172.84
A24: MC | B24: Materiais de Consumo | H24: =SUM(H25:H27) -> 2320 | I24: =SUM(I25:I27) -> 2975.8
A25: M1 | B25: Relatório Impresso | C25: un | D25: =SUMIF(FCON1_Qde!$A$10:$A$28,"="&FCON!$A25,FCON1_Qde!$D$10:$D$28) -> 24 | E25: 56.75 | F25: 72.79 | G25: =FCON3_FatorK234!$E$19 -> 1.2827 | H25: 1362 | I25: 1746.96
A26: M2 | B26: Pendrive 64GB | C26: un | D26: =SUMIF(FCON1_Qde!$A$10:$A$28,"="&FCON!$A26,FCON1_Qde!$D$10:$D$28) -> 8 | E26: 81 | F26: 103.9 | G26: =FCON3_FatorK234!$E$19 -> 1.2827 | H26: 648 | I26: 831.2
A27: M3 | B27: HD Externo 2TB | C27: un | D27: 1 | E27: 310 | F27: 397.64 | G27: =FCON3_FatorK234!$E$19 -> 1.2827 | H27: 310 | I27: 397.64
A28: TOTAL DOS CUSTOS DIRETOS | F28: =H8+H24+H20 -> 1157754
A29: A1 - ENCARGOS SOCIAIS = 77,25% x CT(MO) | F29: =H8*0.7725 -> 821055.642
A30: A2 - CUSTOS DA ADMINISTRAÇÃO CENTRAL = 25% x CT(MO) | F30: =0.25*H8 -> 265713.8
A31: A3 - LUCRO = 10% x [A1 + A2 + CT(MO) + CT(DP) + CT(MC)] | F31: =0.1*SUM(F28:I30) -> 224452.3442
A32: A4 - DESPESAS FISCAIS = 16.61% x [A1 + A2 + A3+ CT(MO) + CT(DP) + CT(MC)] | F32: =0.1661*SUM(F28:I31) -> 410096.8781
A33: TOTAL DA PROPOSTA | F33: =I8+I24+I20 -> 2825737.59
A34: NOME DO INFORMANTE: | H34: QUALIFICAÇÃO
A36: ASSINATURA: | H36: DATA:
A38: OBSERVAÇÃO:
A39: Uni - unidade de medição do insumo;
A40: Qde - Quantidade do Insumo (detalhar quantitativos na Planilha "FPRO1")
A41: CUD - Custo Unitário Direto do Insumo (sem encargos, taxas e impostos)
A42: CT - Custo Total (sem encargos, taxas e impostos) - CT = Qde x CUD
A43: FatorK - Taxa de Ressarcimento de Despesas e Encargos (detalhar composição nas Planilhas "FPRO2" e "FPRO3")
A44: PU - Preço Unitário (incluído encargos, taxas e impostos) - PU = CUD x FatorK
A45: PT - Preço Total (incluído encargos, taxas e impostos) - PT = Qde x PU

Sheet FCON1_Qde
A1: QUANTITATIVOS POR PRODUTO | I1: CODIGO:
I2: FCON-1
A3: NOME DA CONSULTORA:
A5: PROJETO: | C5: PRODUTO: | I5: EDITAL:
A6: SERVIÇOS ESPECIALIZADOS PARA ELABORAÇÃO DOS RELATÓRIOS DE REVISÃO PERIODICA DE SEGURANÇA (RPS) DAS BARRAGENS DA CODEVASF
A7: Cod. | B7: Insumo - Produto RPS | C7: Uni | D7: Qde Total | E7: Barragem
E8: Bico | F8: Miro | G8: Cova | H8: Estr | I8: Cera | J8: Poço | K8: Zabu | L8: Boac
A9: MO | B9: Mão-de-Obra | E9: P1 | F9: P2 | G9: P3 | H9: P4 | I9: P5 | J9: P6 | K9: P7 | L9: P8
A10: P0 | B10: Coordenador Geral | C10: mês | D10: =SUM(E10:L10) -> 10 | E10: 2 | F10: 2 | G10: 1 | H10: 1 | I10: 1 | J10: 1 | K10: 1 | L10: 1
A11: P1 | B11: Engenheiro Hidráulico | C11: mês | D11: 10 | E11: 2 | F11: 2 | G11: 1 | H11: 1 | I11: 1 | J11: 1 | K11: 1 | L11: 1
A12: P1 | B12: Engenheiro Hidrólogo | C12: mês | D12: 10 | E12: 2 | F12: 2 | G12: 1 | H12: 1 | I12: 1 | J12: 1 | K12: 1 | L12: 1
A13: P1 | B13: Engenheiro Geotécnico | C13: mês | D13: 10 | E13: 2 | F13: 2 | G13: 1 | H13: 1 | I13: 1 | J13: 1 | K13: 1 | L13: 1
A14: P1 | B14: Engenheiro Estrutural | C14: mês | D14: 10 | E14: 2 | F14: 2 | G14: 1 | H14: 1 | I14: 1 | J14: 1 | K14: 1 | L14: 1
A15: P1 | B15: Engenheiro Mecânico/Eletricista | C15: mês | D15: 5 | E15: 1 | F15: 1 | G15: 0.5 | H15: 0.5 | I15: 0.5 | J15: 0.5 | K15: 0.5 | L15: 0.5
A16: P1 | B16: Geólogo | C16: mês | D16: 5 | E16: 1 | F16: 1 | G16: 0.5 | H16: 0.5 | I16: 0.5 | J16: 0.5 | K16: 0.5 | L16: 0.5
A17: T1 | B17: Técnico Cadista/Estruturas | C17: mês | D17: 10 | E17: 2 | F17: 2 | G17: 1 | H17: 1 | I17: 1 | J17: 1 | K17: 1 | L17: 1
A18: T1 | B18: Técnico Geopro/Hidrologia | C18: mês | D18: 20 | E18: 4 | F18: 4 | G18: 2 | H18: 2 | I18: 2 | J18: 2 | K18: 2 | L18: 2
A19: A1 | B19: Secretário | C19: mês | D19: 10 | E19: 2 | F19: 2 | G19: 1 | H19: 1 | I19: 1 | J19: 1 | K19: 1 | L19: 1
A20: A1 | B20: Redator/Revisor/Editor | C20: mês | D20: 5 | E20: 1 | F20: 1 | G20: 0.5 | H20: 0.5 | I20: 0.5 | J20: 0.5 | K20: 0.5 | L20: 0.5
A21: DP | B21: Diárias e Passagens
A22: V0 | B22: Diárias | C22: dias | D22: =SUM(E22:L22) -> 168 | E22: =7*4 -> 28 | F22: =7*4 -> 28 | G22: =7*2 -> 14 | H22: =7*2 -> 14 | I22: 14 | J22: 14 | K22: 28 | L22: =7*4 -> 28
A23: V1 | B23: Aluguel Hatch 1.4 flex (85cv) c/ Motorista | C23: dias | D23: 48 | E23: =4*2 -> 8 | F23: =4*2 -> 8 | G23: 4 | H23: 4 | I23: 4 | J23: 4 | K23: 8 | L23: 8
A24: V2 | B24: Passagens Aéreas (ida e volta) | C24: uni | D24: 42 | E24: 7 | F24: 7 | G24: 3.5 | H24: 3.5 | I24: 3.5 | J24: 3.5 | K24: 7 | L24: 7
A25: MC | B25: Materiais de Consumo
A26: M1 | B26: Relatório Impresso | C26: uni | D26: 24 | E26: 3 | F26: 3 | G26: 3 | H26: 3 | I26: 3 | J26: 3 | K26: 3 | L26: 3
A27: M2 | B27: Pendrive 64GB | C27: uni | D27: 8 | E27: 1 | F27: 1 | G27: 1 | H27: 1 | I27: 1 | J27: 1 | K27: 1 | L27: 1
A28: M3 | B28: HD Externo 1TB | C28: uni | D28: 1 | E28: 1 | F28: 0 | G28: 0 | H28: 0 | I28: 0 | J28: 0 | K28: 0 | L28: 0
A29: NOME DO INFORMANTE: | H29: QUALIFICAÇÃO:
A31: ASSINATURA: | H31: DATA:
A33: OBSERVAÇÃO:

Sheet FCON2_FatorK1
A1: DETALHAMENTO DOS ENCARGOS SOCIAIS: K1 | F1: CODIGO:
F2: FCON-2
A3: NOME DA CONSULTORA:
A5: PROJETO: | C5: PRODUTO: | F5: EDITAL:
A6: SERVIÇOS ESPECIALIZADOS PARA ELABORAÇÃO DOS RELATÓRIOS DE REVISÃO PERIODICA DE SEGURANÇA (RPS) DAS BARRAGENS DA CODEVASF
A7: DISCRIMINAÇÃO | E7: VALORES
E8: % | F8: R$
A9: A | B9: ENCARGOS SOCIAIS BÁSICOS | E9: =ROUND(SUM(E10:E18),4) -> 0.368 | F9: =E9*FCON!$H$8 -> 391130.7136
A10: A1 | B10: Seconci | E10: 0 | F10: =E10*FCON!$H$8 -> 0
A11: A2 | B11: INSS | E11: 0.2 | F11: =E11*FCON!$H$8 -> 212571.04
A12: A3 | B12: FGTS | E12: 0.08 | F12: =E12*FCON!$H$8 -> 85028.416
A13: A4 | B13: Incra | E13: 0.002 | F13: =E13*FCON!$H$8 -> 2125.7104
A14: A5 | B14: Salário Educação | E14: 0.025 | F14: =E14*FCON!$H$8 -> 26571.38
A15: A6 | B15: Sebrae | E15: 0.006 | F15: =E15*FCON!$H$8 -> 6377.1312
A16: A7 | B16: Seguro contra acidente | E16: 0.03 | F16: =E16*FCON!$H$8 -> 31885.656
A17: A8 | B17: Senai | E17: 0.01 | F17: =E17*FCON!$H$8 -> 10628.552
A18: A9 | B18: Sesi | E18: 0.015 | F18: =E18*FCON!$H$8 -> 15942.828
A19: B | B19: ENCARGOS SOCIAIS QUE RECEBEM INCIDÊNCIA DE "A" | E19: =ROUND(SUM(E20:E26),4) -> 0.1753 | F19: =E19*FCON!$H$8 -> 186318.5166
A20: B1 | B20: 13º Salário | E20: 0.0833 | F20: =E20*FCON!$H$8 -> 88535.83816
A21: B2 | B21: Auxilio Enfermidade | E21: 0.007 | F21: =E21*FCON!$H$8 -> 7439.9864
A22: B3 | B22: Licença Paternidade | E22: 0.0005 | F22: =E22*FCON!$H$8 -> 531.4276
A23: B4 | B23: Faltas Justificadas | E23: 0.0056 | F23: =E23*FCON!$H$8 -> 5951.98912
A24: B5 | B24: Auxílio Acidente de Trabalho | E24: 0.0008 | F24: =E24*FCON!$H$8 -> 850.28416
A25: B6 | B25: Férias Gozadas | E25: 0.0779 | F25: =E25*FCON!$H$8 -> 82796.42008
A26: B7 | B26: Salário Maternidade | E26: 0.0002 | F26: =E26*FCON!$H$8 -> 212.57104
A27: C | B27: ENCARGOS SOCIAIS QUE NÃO RECEBEM INCIDÊNCIA DE "A" | E27: =ROUND(SUM(E28:E32),4) -> 0.1212 | F27: =E27*FCON!$H$8 -> 128818.0502
A28: C1 | B28: Aviso Prévio Indenizado | E28: 0.0495 | F28: =E28*FCON!$H$8 -> 52611.3324
A29: C2 | B29: Aviso Prévio Trabalhado | E29: 0.0012 | F29: =E29*FCON!$H$8 -> 1275.42624
A30: C3 | B30: Férias Indenizadas | E30: 0.0278 | F30: =E30*FCON!$H$8 -> 29547.37456
A31: C4 | B31: Depósito Recisão Sem Justa Causa | E31: 0.0385 | F31: =E31*FCON!$H$8 -> 40919.9252
A32: C5 | B32: Indenização Adicional | E32: 0.0042 | F32: =E32*FCON!$H$8 -> 4463.99184
A33: D | B33: REINCIDÊNCIAS | E33: =ROUND(SUM(E34:E35),4) -> 0.0689 | F33: =E33*FCON!$H$8 -> 73230.72328
A34: D1 | B34: Reincidência de "A" sobre "B" | E34: =ROUND(E9*E19,4) -> 0.0645 | F34: =E34*FCON!$H$8 -> 68554.1604
A35: D2 | B35: Reincidência de "A" sobre Aviso Prévio Trabalhado e reincidência do FGTS sobre aviso prévio indenizado | E35: =ROUND(E9*E29,4)+ROUND(E28*E12,4) -> 0.0044 | F35: =E35*FCON!$H$8 -> 4676.56288
A36: K1 | B36: ENCARGOS SOCIAIS | E36: =ROUND(E9+E19+E27+E33,4) -> 0.7334 | F36: =E36*FCON!$H$8 -> 779498.0037
A37: K | B37: TAXA DE RESSARCIMENTO DE DESPESAS E ENCARGOS SOBRE M.O. | E37: =ROUND((1+E36+FCON3_FatorK234!E15)*(1+FCON3_FatorK234!E14)*(1+FCON3_FatorK234!E10),4) -> 2.5441
A38: NOME DO INFORMANTE: | E38: QUALIFICAÇÃO
A40: ASSINATURA: | E40: DATA:
A42: OBSERVAÇÃO:
A43: 1 - DISCRIMINAR OS ENCARGOS SOCIAIS COM SEUS RESPECTIVOS PERCENTUAS TOTALIZANDO OS MESMOS.
A44: 2 - APLICAR O % TOTAL P/ CALCULAR OS E. SOCIAIS INCIDENTES NA MÃO-DE-OBRA COM VÍNCULO, LINHA "B1" DO FPRO
A45: K - Taxa de Ressarcimento de Despesas e Encargos sobre a Mão de Obra (incide apenas no Insumo Codigo M.O.)
A46: K = (1 + K1 + K2) x (1 + K3) x (1 + K4)

Sheet FCON3_FatorK234
A1: DESPESAS FISCAIS E CUSTOS DIVERSOS: K2, K3, K4 | F1: CODIGO:
F2: FCON-3
A3: NOME DA CONSULTORA:
A5: PROJETO: | C5: PRODUTO: | F5: EDITAL:
A6: SERVIÇOS ESPECIALIZADOS PARA ELABORAÇÃO DOS RELATÓRIOS DE REVISÃO PERIODICA DE SEGURANÇA (RPS) DAS BARRAGENS DA CODEVASF
A7: DISCRIMINAÇÃO 1 | E7: VALORES
E8: % | F8: R$
A9: K4 | B9: DESPESAS FISCAIS | D9: K4 (%)2 | E9: K4' (%)3
D10: =ROUND(D11+D12+D13,4) -> 0.1425 | E10: =ROUND(E11+E12+E13,4) -> 0.1661 | F10: =E10*SUM(FCON!$H$8*(1+FCON2_FatorK1!$E$36)+FCON!$H$20+FCON!$H$24+FCON3_FatorK234!$F$15+FCON3_FatorK234!$F$14) -> 402503.882
A11: 1 | B11: ISS | D11: 0.05 | E11: =ROUND((1/(1-$D$10))*D11,4) -> 0.0583 | F11: =E11*SUM(FCON!$H$8*(1+FCON2_FatorK1!$E$36)+FCON!$H$20+FCON!$H$24+FCON3_FatorK234!$F$15+FCON3_FatorK234!$F$14) -> 141276.197
A12: 2 | B12: PIS | D12: 0.0165 | E12: =ROUND((1/(1-$D$10))*D12,4) -> 0.0192 | F12: =E12*SUM(FCON!$H$8*(1+FCON2_FatorK1!$E$36)+FCON!$H$20+FCON!$H$24+FCON3_FatorK234!$F$15+FCON3_FatorK234!$F$14) -> 46526.63777
A13: 3 | B13: COFINS | D13: 0.076 | E13: 0.0886 | F13: =E13*SUM(FCON!$H$8*(1+FCON2_FatorK1!$E$36)+FCON!$H$20+FCON!$H$24+FCON3_FatorK234!$F$15+FCON3_FatorK234!$F$14) -> 214701.0472
A14: K3 | B14: REMUNERAÇÃO DA EMPRESA (LUCRO) | E14: 0.1 | F14: =E14*SUM(FCON!H8*(1+FCON2_FatorK1!E36)+FCON!H20+FCON!H24+FCON3_FatorK234!F15) -> 220296.5804
A15: K2 | B15: CUSTOS DA ADMINISTRAÇÃO CENTRAL | E15: =ROUND(SUM(E16:E18),4) -> 0.25 | F15: =E15*FCON!$H$8 -> 265713.8
A16: 4 | B16: Custos da equipe da administração central da empresa consultora (diretoria, pessoal técnico de apoio e pessoal administrativo não diretamente vinculado à prestação dos serviços) | E16: 0.18 | F16: =E16*FCON!$H$8 -> 191313.936
A17: 5 | B17: Outras despesas que afetam o custo de produção como treinamento, biblioteca, programa de qualidade, auditoria interna e externa | E17: 0.04 | F17: =E17*FCON!$H$8 -> 42514.208
A18: 6 | B18: Despesas com aluguéis, comunicação, manutenção e transporte não diretamente relacionados com o custo direto dos serviços | E18: 0.03 | F18: =E18*FCON!$H$8 -> 31885.656
A19: K' | B19: TAXA DE RESSARCIMENTO DE DESPESAS SOBRE CUSTOS DIVERSOS | E19: =ROUND((1+E14)*(1+E10),4) -> 1.2827
A20: NOME DO INFORMANTE: | E20: QUALIFICAÇÃO:
A22: ASSINATURA: | E22: DATA:
A24: Observação:
A25: 1 - RELACIONAR OS CUSTOS DE ADMINISTRAÇÃO COM RESPECTIVOS PERCENTUAIS INCIDENTES NA MÃO -DE-OBRA
A26: 1 - DISCRIMINAR OS TRIBUTOS QUE INCIDEM SOBRE OS CUSTOS DA PRESTAÇÃO DOS SERVIÇOS
A27: 2 - K4 = INDICAR % DE CADA TRIBUTO E A SOMA DOS MESMOS (ex: ISS 5% + PIS 1,65% + COFINS 7,60% = 14,25%)
A28: 3 - AS DESPESAS FISCAIS (K4) INCIDEM SOBRE O TOTAL DA FATURA E NÃO SOBRE OS CUSTOS INCORRIDOS,
A29: DEVENDO SER CALCULADO O K4' APLICANDO-SE A SEGUINTE FÓRMULA:
A30: K4' = { [ 1 / ( 1 - K4) ] - 1 } x 100
A31: =CONCATENATE(" K4' = { [ 1 / ( 1 - ",D10," ) ] - 1 } x 100") -> K4' = { [ 1 / ( 1 - 0,1425 ) ] - 1 } x 100
A32: K' - Taxa de Ressarcimento de Despesas sobre Custos Diversos (incide sobre os Insumos Codigo DP, MC e TP)
A33: K' = (1 + K3) x (1 + K4)
A34: K2 - Incide sobre o Custo Total (CT) da Mão de Obra (MO)
A35: K3 - Incide sobre o Custo Total (CT) Mão de Obra com encargos (MO x K1), demais Custos (DP e MC), e Custos da Administração Central (K2)
A36: K4 - Incide sobre o Custo Total (CT) Mão de Obra com encargos (MO x K1), demais Custos (DP e MC), Custos da Administração Central (K2) e Lucro (K3)

Sheet FCON4_OS
A1: ORDEM DE SERVIÇO | H1: CODIGO:
H2: O.S.
A3: NOME DA CONSULTORA:
A5: PROJETO: | D5: PRODUTO: | H5: CONTRATO:
A6: SERVIÇOS ESPECIALIZADOS PARA ELABORAÇÃO DOS RELATÓRIOS DE REVISÃO PERIODICA DE SEGURANÇA (RPS) DAS BARRAGENS DA CODEVASF
A7: Cod. | B7: Categoria / Insumo | C7: Uni | D7: Qde | E7: CUD | F7: PU | G7: FatorK | H7: CT | I7: PT
A8: MO | B8: Mão de Obra | H8: =SUM(H9:H19) -> 0 | I8: =SUM(I9:I19) -> 0
A9: P0 | B9: Coordenador Geral | C9: mês
A10: P1 | B10: Engenheiro Hidráulico | C10: mês
A11: P1 | B11: Engenheiro Hidrólogo | C11: mês
A12: P1 | B12: Engenheiro Geotécnico | C12: mês
A13: P1 | B13: Engenheiro Estrutural | C13: mês
A14: P1 | B14: Engenheiro Mecânico/Eletricista | C14: mês
A15: P1 | B15: Geólogo | C15: mês
A16: T1 | B16: Técnico Cadista | C16: mês
A17: T1 | B17: Técnico Geoprocessamento | C17: mês
A18: A1 | B18: Secretário | C18: mês
A19: A1 | B19: Redator/Revisor/Editor | C19: mês
A20: DP | B20: Diárias e Passagens | H20: =SUM(H21:H23) -> 0 | I20: =SUM(I21:I23) -> 0
A21: V0 | B21: Diárias | C21: dia
A22: V1 | B22: Aluguel Hatch 1.4 flex c/ Motorista | C22: dia
A23: V2 | B23: Passagens Aéreas (ida e volta) | C23: un
A24: MC | B24: Materiais de Consumo | H24: =SUM(H25:H27) -> 0 | I24: =SUM(I25:I27) -> 0
A25: M1 | B25: Relatório Impresso | C25: un
A26: M2 | B26: Pendrive 64GB | C26: un
A27: M3 | B27: HD Externo 2TB | C27: un
A28: VALOR TOTAL DOS CUSTOS DIRETOS | F28: =H8+H24+H20 -> 0
A29: A1 - ENCARGOS SOCIAIS = 77,25% x CT(MO) | F29: =H8*0.7725 -> 0
A30: A2 - CUSTOS DA ADMINISTRAÇÃO CENTRAL = 25% x CT(MO) | F30: =0.25*H8 -> 0
A31: A3 - LUCRO = 10% x [A1 + A2 + CT(MO) + CT(DP) + CT(MC)] | F31: =0.1*SUM(F28:I30) -> 0
A32: A4 - DESPESAS FISCAIS = 16.61% x [A1 + A2 + A3+ CT(MO) + CT(DP) + CT(MC)] | F32: =0.1661*SUM(F28:I31) -> 0
A33: VALOR TOTAL DO PRODUTO | F33: =I8+I24+I20 -> 0
A34: FISCAL DO CONTRATO Nº _______________________: | H34: PRAZO DE ELABORAÇÃO:
A36: ASSINATURA: | H36: DATA DE AUTORIZAÇÃO:
A38: OBSERVAÇÃO:
A39: O PRODUTO DEVE SER ELABORADO CONFORME ESPECIFICAÇÕES DADAS NO TERMO DE REFERÊNCIA E EDITAL, COM AS MODIFICAÇÕES TÉCNICAS E ESPECIFICIDADES ESTABELECIDAS NO ANEXO DESTA ORDEM DE SERVIÇO.
